fUST/lending_fUST_20240411
["ID","MTS","AMOUNT","RATE_DAILY","PERIOD"]
[322098005,1712765251273,-500.0,0.00033424,5]
[322098006,1712765251293,-2188.8,0.00033424,5]
[322098007,1712765251313,-552.1,0.00033424,5]
[322098008,1712765251334,-500.0,0.00033424,5]
[322098009,1712765251354,-505.29615471,0.00033424,5]
[322098010,1712765251375,-500.0,0.00033424,5]
[322098011,1712765251397,-500.0,0.00033424,5]
[322098012,1712765251417,-502.35,0.00033424,5]
[322098013,1712765251439,-500.0,0.00033424,5]
[322098014,1712765251460,-524.97,0.00033424,5]
[322098015,1712765251480,-500.0,0.00033424,5]
[322098016,1712765251501,-1393.86,0.00033424,5]
[322098017,1712765251522,-500.0,0.00033424,5]
[322098018,1712765251542,-500.0,0.00033424,5]
[322098019,1712765251562,-500.0,0.00033424,5]
[322098020,1712765251582,-500.0,0.00033424,5]
[322098021,1712765251603,-500.0,0.00033424,5]
[322098022,1712765251624,-618.62,0.00033424,5]
[322098023,1712765251645,-500.0,0.00033424,5]
[322098024,1712765251666,-500.0,0.00033424,5]
[322098025,1712765251688,-537.91,0.00033424,5]
[322098026,1712765251708,-500.0,0.00033424,5]
[322098027,1712765251732,-500.0,0.00033424,5]
[322098028,1712765251753,-534.91,0.00033424,5]
[322098029,1712765251774,-500.0,0.00033424,5]
[322098030,1712765251795,-21360.54,0.00033424,5]
[322098031,1712765251818,-500.0,0.00033424,5]
[322098032,1712765251839,-500.0,0.00033424,5]
[322098033,1712765251862,-412.87667394,0.00033424,5]
[322098034,1712765252178,-500.0,0.00032876,5]
[322098035,1712765252202,-1329.5,0.00032876,5]
[322098036,1712765252222,-298.02552975,0.0003315,5]
[322098037,1712765252242,-1329.5,0.0003315,5]
[322098038,1712765252261,-3918.7,0.00033423,2]
[322098039,1712765252283,-3248.83831025,0.00033423,2]
[322098041,1712765366121,-1240.92149524,0.00030081,4]
[322098042,1712765378450,1240.92149524,0.00030081,4]
[322098044,1712765396491,1240.92149524,0.00030081,4]
[322098045,1712765409954,1013.33930327,0.00030081,4]
[322098046,1712765415737,295.8912181,0.00030081,4]
[322098047,1712765416443,923.60014146,0.00027073,2]
[322098048,1712765425952,1013.33930327,0.00030081,4]
[322098071,1712765433914,255.62118111,0.00030081,4]
[322098072,1712765436447,923.60014146,0.00027073,2]
[322098078,1712765438431,-400.0,0.00032875,2]
[322098080,1712765438442,-500.0,0.00032876,5]
[322098081,1712765438453,-505.70369647,0.00032876,5]
[322098083,1712765438465,-500.0,0.00032876,5]
[322098085,1712765438476,-500.0,0.00032876,5]
[322098087,1712765438487,-887.15,0.00032876,5]
[322098088,1712765438497,-500.0,0.00032876,5]
[322098090,1712765438507,-6831.71014353,0.00032876,5]
[322098092,1712765438520,-11858.76985647,0.00032876,5]
[322098094,1712765438530,-500.0,0.00032876,5]
[322098096,1712765438541,-558.69,0.00032876,5]
[322098098,1712765438551,-500.0,0.00032876,5]
[322098100,1712765438560,-4270.11,0.00032876,5]
[322098102,1712765438570,-1052.03,0.00032876,5]
[322098103,1712765438580,-500.0,0.00032876,5]
[322098105,1712765438589,-500.0,0.00032876,5]
[322098107,1712765438601,-500.0,0.00032876,5]
[322098119,1712765438699,-364.94270183,0.00032876,5]
[322098121,1712765438708,-500.0,0.00032876,5]
[322098123,1712765438717,-500.0,0.00032876,5]
[322098125,1712765438727,-500.0,0.00032876,5]
[322098127,1712765438736,-6744.85,0.00032876,5]
[322098129,1712765438745,-1915.2,0.00032876,5]
[322098131,1712765438755,-2140.25,0.00032876,5]
[322098133,1712765438765,-500.0,0.00032876,5]
[322098135,1712765438774,-3773.43,0.00032876,5]
[322098137,1712765438783,-2084.31,0.00032876,5]
[322098139,1712765438793,-500.0,0.00032876,5]
[322098141,1712765438803,-1153.72,0.00032876,5]
[322098143,1712765438812,-500.0,0.00032876,5]
[322098145,1712765438822,-1248.72,0.00032876,5]
[322098147,1712765438831,-500.0,0.00032876,5]
[322098149,1712765438840,-7996.03,0.00032876,5]
[322098151,1712765438851,-18896.46,0.00032876,5]
[322098152,1712765438860,-2782.44,0.00032876,5]
[322098155,1712765438871,-500.0,0.00032876,5]
[322098156,1712765438880,-500.0,0.00032876,5]
[322098158,1712765438889,-1000.0,0.00033069,2]
[322098160,1712765438897,-500.0,0.00033149,7]
[322098162,1712765438906,-204.87906809,0.00033149,7]
[322098164,1712765438917,-258.54032075,0.00033149,7]
[322098166,1712765438926,-500.0,0.0003315,5]
[322098168,1712765438935,-500.0,0.0003315,5]
[322098170,1712765438944,-500.0,0.0003315,5]
[322098172,1712765438954,-887.15,0.0003315,5]
[322098174,1712765438963,-517.96720848,0.0003315,5]
[322098176,1712765438972,-18690.48,0.0003315,5]
[322098178,1712765438982,-500.0,0.0003315,5]
[322098180,1712765438991,-558.69,0.0003315,5]
[322098182,1712765439000,-500.0,0.0003315,5]
[322098184,1712765439010,-4270.11,0.0003315,5]
[322098186,1712765439019,-1052.03,0.0003315,5]
[322098188,1712765439029,-500.0,0.0003315,5]
[322098190,1712765439039,-500.0,0.0003315,5]
[322098192,1712765439048,-500.0,0.0003315,5]
[322098194,1712765439057,-500.0,0.0003315,5]
[322098196,1712765439066,-500.0,0.0003315,5]
[322098198,1712765439076,-255.04864999,0.0003315,5]
[322098200,1712765439085,-6744.85,0.0003315,5]
[322098202,1712765439095,-1915.2,0.0003315,5]
[322098204,1712765439104,-2140.25,0.0003315,5]
[322098206,1712765439114,-500.0,0.0003315,5]
[322098208,1712765439123,-3773.43,0.0003315,5]
[322098210,1712765439133,-2084.31,0.0003315,5]
[322098212,1712765439142,-500.0,0.0003315,5]
[322098214,1712765439152,-1153.72,0.0003315,5]
[322098216,1712765439161,-500.0,0.0003315,5]
[322098218,1712765439173,-1248.72,0.0003315,5]
[322098220,1712765439186,-500.0,0.0003315,5]
[322098222,1712765439195,-7996.03,0.0003315,5]
[322098224,1712765439205,-18896.46,0.0003315,5]
[322098226,1712765439215,-2782.44,0.0003315,5]
[322098228,1712765439225,-603.78485228,0.0003315,5]
[322098230,1712765439234,-500.0,0.0003315,5]
[322098232,1712765439243,-300.0,0.00033181,2]
[322098234,1712765439253,-287.42373212,0.00033324,6]
[322098236,1712765439263,-1018.581908,0.000334,12]
[322098238,1712765439273,-153.0,0.000334,2]
[322098240,1712765439282,-153.0,0.000334,2]
[322098242,1712765439291,-3918.7,0.00033423,2]
[322098244,1712765439301,-3918.7,0.00033423,2]
[322098246,1712765439310,-3918.7,0.00033423,2]
[322098248,1712765439318,-2894.77,0.00033423,2]
[322098250,1712765439328,-36049.22408332,0.00033424,2]
[322098251,1712765439338,-87.12332606,0.00033424,5]
[322098253,1712765439348,-500.0,0.00033424,5]
[322098255,1712765439358,-577.81,0.00033424,5]
[322098257,1712765439367,-500.0,0.00033424,5]
[322098259,1712765439376,-500.0,0.00033424,5]
[322098262,1712765439392,-500.0,0.00033424,5]
[322098264,1712765439408,-500.0,0.00033424,5]
[322098266,1712765439422,-500.0,0.00033424,5]
[322098268,1712765439433,-500.0,0.00033424,5]
[322098271,1712765439448,-748.68,0.00033424,5]
[322098273,1712765439461,-663.36,0.00033424,5]
[322098276,1712765439476,-575.53,0.00033424,5]
[322098278,1712765439490,-500.0,0.00033424,5]
[322098280,1712765439502,-924.26,0.00033424,5]
[322098283,1712765439516,-873.59,0.00033424,5]
[322098285,1712765439529,-500.0,0.00033424,5]
[322098287,1712765439542,-500.0,0.00033424,5]
[322098290,1712765439556,-500.0,0.00033424,5]
[322098292,1712765439570,-500.0,0.00033424,5]
[322098294,1712765439581,-895.03,0.00033424,5]
[322098296,1712765439597,-500.0,0.00033424,5]
[322098299,1712765439611,-1803.96,0.00033424,5]
[322098301,1712765439625,-3286.11,0.00033424,5]
[322098303,1712765439637,-500.0,0.00033424,5]
[322098306,1712765439650,-3593.27,0.00033424,5]
[322098308,1712765439663,-500.0,0.00033424,5]
[322098310,1712765439677,-4002.86,0.00033424,5]
[322098313,1712765439691,-1097.88,0.00033424,5]
[322098315,1712765439707,-500.0,0.00033424,5]
[322098318,1712765439721,-2080.69,0.00033424,5]
[322098321,1712765439731,-500.0,0.00033424,5]
[322098325,1712765439743,-500.0,0.00033424,5]
[322098327,1712765439755,-3125.12,0.00033424,5]
[322098330,1712765439769,-743.97,0.00033424,5]
[322098332,1712765439781,-6951.55,0.00033424,5]
[322098335,1712765439793,-1171.67,0.00033424,5]
[322098337,1712765439805,-500.0,0.00033424,5]
[322098339,1712765439816,-1715.11,0.00033424,5]
[322098341,1712765439828,-500.0,0.00033424,5]
[322098343,1712765439840,-2336.93,0.00033424,5]
[322098346,1712765439856,-658.43,0.00033424,5]
[322098348,1712765439868,-1574.07,0.00033424,5]
[322098350,1712765439879,-528.92,0.00033424,5]
[322098353,1712765439890,-1857.76,0.00033424,5]
[322098357,1712765439902,-372.3906513,0.00033424,5]
[322098360,1712765439913,-1531.87,0.00033424,5]
[322098362,1712765439924,-500.0,0.00033424,5]
[322098364,1712765439935,-1012.06,0.00033424,5]
[322098367,1712765439947,-500.0,0.00033424,5]
[322098370,1712765439959,-1329.5,0.00033424,5]
[322098373,1712765439970,-500.0,0.00033424,5]
[322098377,1712765439981,-500.0,0.00033424,5]
[322098379,1712765439993,-500.0,0.00033424,5]
[322098382,1712765440004,-887.15,0.00033424,5]
[322098384,1712765440016,-17538.45742449,0.00033424,5]
[322098387,1712765440032,-1152.02257551,0.00033424,5]
[322098389,1712765440044,-500.0,0.00033424,5]
[322098391,1712765440055,-558.69,0.00033424,5]
[322098393,1712765440066,-500.0,0.00033424,5]
[322098396,1712765440078,-4270.11,0.00033424,5]
[322098398,1712765440089,-1052.03,0.00033424,5]
[322098400,1712765440102,-500.0,0.00033424,5]
[322098402,1712765440113,-500.0,0.00033424,5]
[322098404,1712765440125,-500.0,0.00033424,5]
[322098407,1712765440136,-500.0,0.00033424,5]
[322098409,1712765440145,-500.0,0.00033424,5]
[322098411,1712765440154,-6744.85,0.00033424,5]
[322098413,1712765440163,-1915.2,0.00033424,5]
[322098415,1712765440172,-2140.25,0.00033424,5]
[322098417,1712765440181,-500.0,0.00033424,5]
[322098419,1712765440195,-3773.43,0.00033424,5]
[322098421,1712765440204,-2084.31,0.00033424,5]
[322098423,1712765440213,-500.0,0.00033424,5]
[322098425,1712765440222,-1153.72,0.00033424,5]
[322098426,1712765440231,-505.69019016,0.00033424,5]
[322098429,1712765440241,-1248.72,0.00033424,5]
[322098443,1712765440250,-500.0,0.00033424,5]
[322098446,1712765440387,-7996.03,0.00033424,5]
[322098448,1712765440397,-18896.46,0.00033424,5]
[322098450,1712765440406,-2782.44,0.00033424,5]
[322098452,1712765440415,-150.45232449,0.00033631,7]
[322098454,1712765440424,-287.42373209,0.00033696,6]
[322098456,1712765440433,-2894.78,0.00033697,2]
[322098458,1712765440442,-2894.78,0.00033697,2]
[322098460,1712765440451,-500.0,0.00033698,5]
[322098462,1712765440460,-500.0,0.00033698,5]
[322098464,1712765440469,-500.0,0.00033698,5]
[322098465,1712765440478,-500.0,0.00033698,5]
[322098467,1712765440487,-500.0,0.00033698,5]
[322098468,1712765440496,-500.0,0.00033698,5]
[322098469,1712765440505,-552.1,0.00033698,5]
[322098470,1712765440514,-500.0,0.00033698,5]
[322098471,1712765440523,-500.0,0.00033698,5]
[322098472,1712765440533,-502.35,0.00033698,5]
[322098473,1712765440541,-500.0,0.00033698,5]
[322098474,1712765440550,-524.97,0.00033698,5]
[322098475,1712765440559,-500.0,0.00033698,5]
[322098476,1712765440568,-1393.86,0.00033698,5]
[322098477,1712765440576,-500.0,0.00033698,5]
[322098478,1712765440585,-500.0,0.00033698,5]
[322098479,1712765440594,-500.0,0.00033698,5]
[322098480,1712765440603,-555.05188313,0.00033698,5]
[322098481,1712765440612,-618.62,0.00033698,5]
[322098482,1712765440621,-500.0,0.00033698,5]
[322098483,1712765440630,-500.0,0.00033698,5]
[322098484,1712765440639,-500.0,0.00033698,5]
[322098486,1712765440649,-534.91,0.00033698,5]
[322098488,1712765440658,-500.0,0.00033698,5]
[322098490,1712765440667,-500.0,0.00033698,5]
[322098491,1712765440677,-156.08797315,0.00033698,5]
[322098494,1712765440687,-500.0,0.00033698,5]
[322098496,1712765440696,-500.0,0.00033698,5]
[322098498,1712765440705,-577.81,0.00033698,5]
[322098500,1712765440714,-500.0,0.00033698,5]
[322098501,1712765440723,-500.0,0.00033698,5]
[322098503,1712765440732,-500.0,0.00033698,5]
[322098505,1712765440742,-500.0,0.00033698,5]
[322098507,1712765440751,-500.0,0.00033698,5]
[322098509,1712765440761,-500.0,0.00033698,5]
[322098511,1712765440770,-748.68,0.00033698,5]
[322098513,1712765440780,-663.36,0.00033698,5]
[322098515,1712765440789,-575.53,0.00033698,5]
[322098517,1712765440799,-542.492775,0.00033698,5]
[322098519,1712765440809,-924.26,0.00033698,5]
[322098521,1712765440817,-873.59,0.00033698,5]
[322098523,1712765440827,-500.0,0.00033698,5]
[322098525,1712765440836,-500.0,0.00033698,5]
[322098527,1712765440846,-500.0,0.00033698,5]
[322098529,1712765440858,-500.0,0.00033698,5]
[322098531,1712765440867,-895.03,0.00033698,5]
[322098533,1712765440876,-500.0,0.00033698,5]
[322098535,1712765440885,-1803.96,0.00033698,5]
[322098537,1712765440895,-3286.11,0.00033698,5]
[322098539,1712765440904,-500.0,0.00033698,5]
[322098540,1712765440914,-3593.27,0.00033698,5]
[322098541,1712765440923,-500.0,0.00033698,5]
[322098542,1712765440932,-4002.86,0.00033698,5]
[322098543,1712765440941,-1097.88,0.00033698,5]
[322098544,1712765440950,-500.0,0.00033698,5]
[322098545,1712765440959,-2080.69,0.00033698,5]
[322098546,1712765440968,-500.0,0.00033698,5]
[322098547,1712765440977,-500.0,0.00033698,5]
[322098548,1712765440986,-3125.12,0.00033698,5]
[322098549,1712765440995,-743.97,0.00033698,5]
[322098550,1712765441004,-6951.55,0.00033698,5]
[322098551,1712765441013,-1171.67,0.00033698,5]
[322098552,1712765441022,-500.0,0.00033698,5]
[322098553,1712765441032,-1715.11,0.00033698,5]
[322098554,1712765441040,-500.0,0.00033698,5]
[322098555,1712765441049,-2336.93,0.00033698,5]
[322098556,1712765441058,-658.43,0.00033698,5]
[322098557,1712765441067,-1574.07,0.00033698,5]
[322098558,1712765441077,-528.92,0.00033698,5]
[322098559,1712765441086,-1857.76,0.00033698,5]
[322098560,1712765441095,-1531.87,0.00033698,5]
[322098561,1712765441106,-500.0,0.00033698,5]
[322098562,1712765441115,-1012.06,0.00033698,5]
[322098563,1712765441125,-500.0,0.00033698,5]
[322098564,1712765441134,-1329.5,0.00033698,5]
[322098565,1712765441144,-500.0,0.00033698,5]
[322098566,1712765441153,-500.0,0.00033698,5]
[322098567,1712765441162,-500.0,0.00033698,5]
[322098568,1712765441173,-887.15,0.00033698,5]
[322098569,1712765441185,-18690.48,0.00033698,5]
[322098570,1712765441194,-500.0,0.00033698,5]
[322098571,1712765441203,-558.69,0.00033698,5]
[322098572,1712765441215,-500.0,0.00033698,5]
[322098573,1712765441224,-4270.11,0.00033698,5]
[322098574,1712765441233,-1052.03,0.00033698,5]
[322098575,1712765441242,-500.0,0.00033698,5]
[322098576,1712765441252,-500.0,0.00033698,5]
[322098577,1712765441262,-500.0,0.00033698,5]
[322098578,1712765441271,-500.0,0.00033698,5]
[322098579,1712765441280,-500.0,0.00033698,5]
[322098580,1712765441289,-6744.85,0.00033698,5]
[322098581,1712765441299,-1915.2,0.00033698,5]
[322098582,1712765441308,-2140.25,0.00033698,5]
[322098583,1712765441317,-500.0,0.00033698,5]
[322098584,1712765441327,-3773.43,0.00033698,5]
[322098585,1712765441336,-2084.31,0.00033698,5]
[322098586,1712765441346,-500.0,0.00033698,5]
[322098587,1712765441358,-1153.72,0.00033698,5]
[322098588,1712765441367,-1248.72,0.00033698,5]
[322098589,1712765441377,-500.0,0.00033698,5]
[322098590,1712765441386,-7996.03,0.00033698,5]
[322098591,1712765441396,-18896.46,0.00033698,5]
[322098592,1712765441405,-2782.44,0.00033698,5]
[322098593,1712765441415,-1000.0,0.00033701,2]
[322098594,1712765441424,-181.98563654,0.00033794,7]
[322098595,1712765441434,-178.315152,0.00033796,2]
[322098596,1712765441443,-164.394341,0.00033796,2]
[322098597,1712765441452,-165.75868,0.00033844,2]
[322098598,1712765441462,-153.0,0.00033853,2]
[322098600,1712765441471,-153.0,0.00033853,2]
[322098601,1712765441480,-306.0,0.00033853,2]
[322098603,1712765441490,-1405.10322367,0.00033872,2]
[322098605,1712765441499,-1000.0,0.00033885,2]
[322098607,1712765441509,-153.0,0.00033888,2]
[322098608,1712765441518,-153.0,0.00033888,2]
[322098610,1712765441528,-153.0,0.00033888,2]
[322098612,1712765441537,-8096.451927,0.000339,2]
[322098613,1712765441548,-181.98563654,0.00033909,7]
[322098614,1712765441558,-2894.78,0.00033971,2]
[322098616,1712765441567,-150.0,0.00033971,2]
[322098618,1712765441577,-500.0,0.00033972,5]
[322098620,1712765441586,-500.0,0.00033972,5]
[322098622,1712765441596,-500.0,0.00033972,5]
[322098623,1712765441607,-500.0,0.00033972,5]
[322098624,1712765441617,-500.0,0.00033972,5]
[322098625,1712765441626,-552.1,0.00033972,5]
[322098626,1712765441636,-500.0,0.00033972,5]
[322098627,1712765441645,-500.0,0.00033972,5]
[322098628,1712765441654,-502.35,0.00033972,5]
[322098629,1712765441664,-500.0,0.00033972,5]
[322098630,1712765441673,-524.97,0.00033972,5]
[322098631,1712765441682,-500.0,0.00033972,5]
[322098632,1712765441691,-1393.86,0.00033972,5]
[322098633,1712765441701,-500.0,0.00033972,5]
[322098634,1712765441710,-500.0,0.00033972,5]
[322098635,1712765441719,-500.0,0.00033972,5]
[322098636,1712765441728,-618.62,0.00033972,5]
[322098637,1712765441737,-500.0,0.00033972,5]
[322098638,1712765441746,-500.0,0.00033972,5]
[322098639,1712765441755,-500.0,0.00033972,5]
[322098640,1712765441764,-534.91,0.00033972,5]
[322098641,1712765441773,-500.0,0.00033972,5]
[322098642,1712765441783,-500.0,0.00033972,5]
[322098643,1712765441795,-513.97601445,0.00033972,5]
[322098644,1712765441805,-577.81,0.00033972,5]
[322098645,1712765441815,-500.0,0.00033972,5]
[322098646,1712765441824,-500.0,0.00033972,5]
[322098647,1712765441834,-500.0,0.00033972,5]
[322098648,1712765441845,-500.0,0.00033972,5]
[322098649,1712765441857,-500.0,0.00033972,5]
[322098650,1712765441868,-500.0,0.00033972,5]
[322098651,1712765441878,-748.68,0.00033972,5]
[322098652,1712765441888,-663.36,0.00033972,5]
[322098653,1712765441897,-575.53,0.00033972,5]
[322098654,1712765441907,-924.26,0.00033972,5]
[322098655,1712765441917,-873.59,0.00033972,5]
[322098656,1712765441926,-500.0,0.00033972,5]
[322098657,1712765441935,-500.0,0.00033972,5]
[322098658,1712765441944,-500.0,0.00033972,5]
[322098659,1712765441953,-500.0,0.00033972,5]
[322098660,1712765441963,-895.03,0.00033972,5]
[322098661,1712765441972,-500.0,0.00033972,5]
[322098662,1712765441981,-1803.96,0.00033972,5]
[322098663,1712765441991,-3286.11,0.00033972,5]
[322098664,1712765442000,-500.0,0.00033972,5]
[322098665,1712765442009,-3593.27,0.00033972,5]
[322098666,1712765442019,-500.0,0.00033972,5]
[322098667,1712765442028,-4002.86,0.00033972,5]
[322098668,1712765442036,-1097.88,0.00033972,5]
[322098669,1712765442046,-500.0,0.00033972,5]
[322098670,1712765442055,-2080.69,0.00033972,5]
[322098671,1712765442064,-500.0,0.00033972,5]
[322098672,1712765442073,-500.0,0.00033972,5]
[322098673,1712765442082,-3125.12,0.00033972,5]
[322098674,1712765442092,-743.97,0.00033972,5]
[322098675,1712765442106,-6951.55,0.00033972,5]
[322098676,1712765442115,-1171.67,0.00033972,5]
[322098677,1712765442125,-500.0,0.00033972,5]
[322098678,1712765442134,-1715.11,0.00033972,5]
[322098679,1712765442144,-500.0,0.00033972,5]
[322098680,1712765442153,-2336.93,0.00033972,5]
[322098681,1712765442162,-658.43,0.00033972,5]
[322098682,1712765442172,-1574.07,0.00033972,5]
[322098683,1712765442181,-528.92,0.00033972,5]
[322098684,1712765442194,-1857.76,0.00033972,5]
[322098685,1712765442203,-1531.87,0.00033972,5]
[322098686,1712765442212,-500.0,0.00033972,5]
[322098687,1712765442222,-1012.06,0.00033972,5]
[322098688,1712765442231,-500.0,0.00033972,5]
[322098689,1712765442239,-1329.5,0.00033972,5]
[322098690,1712765442249,-500.0,0.00033972,5]
[322098691,1712765442258,-500.0,0.00033972,5]
[322098692,1712765442269,-500.0,0.00033972,5]
[322098693,1712765442279,-887.15,0.00033972,5]
[322098694,1712765442288,-18690.48,0.00033972,5]
[322098695,1712765442297,-500.0,0.00033972,5]
[322098696,1712765442306,-558.69,0.00033972,5]
[322098697,1712765442316,-500.0,0.00033972,5]
[322098698,1712765442325,-4270.11,0.00033972,5]
[322098699,1712765442334,-1052.03,0.00033972,5]
[322098700,1712765442343,-500.0,0.00033972,5]
[322098701,1712765442355,-251.08832255,0.00033972,5]
[322098702,1712765442365,-500.0,0.00033972,5]
[322098703,1712765442375,-500.0,0.00033972,5]
[322098704,1712765442384,-500.0,0.00033972,5]
[322098705,1712765442393,-6744.85,0.00033972,5]
[322098706,1712765442402,-1915.2,0.00033972,5]
[322098707,1712765442410,-2140.25,0.00033972,5]
[322098708,1712765442419,-500.0,0.00033972,5]
[322098709,1712765442428,-3773.43,0.00033972,5]
[322098710,1712765442437,-2084.31,0.00033972,5]
[322098711,1712765442446,-500.0,0.00033972,5]
[322098712,1712765442455,-1153.72,0.00033972,5]
[322098713,1712765442465,-1248.72,0.00033972,5]
[322098714,1712765442474,-425.30039637,0.00033972,5]
[322098715,1712765442484,-7996.03,0.00033972,5]
[322098716,1712765442493,-18896.46,0.00033972,5]
[322098717,1712765442503,-2782.44,0.00033972,5]
[322098718,1712765442512,-181.98563654,0.00033981,7]
[322098719,1712765442522,-1500.0,0.00034,2]
[322098720,1712765442531,-1500.0,0.00034,2]
[322098721,1712765442541,-1500.0,0.00034,2]
[322098722,1712765442551,-1500.0,0.00034,2]
[322098723,1712765442560,-1500.0,0.00034,2]
[322098724,1712765442569,-1500.0,0.00034,2]
[322098725,1712765442579,-1500.0,0.00034,2]
[322098726,1712765442589,-1594.97,0.00034,2]
[322098727,1712765442601,-150.0,0.00034,2]
[322098728,1712765442610,-166.90936457,0.0003403,2]
[322098729,1712765442620,-150.0,0.0003403,2]
[322098730,1712765442629,-287.42373209,0.00034069,6]
[322098731,1712765442638,-150.0,0.00034164,2]
[322098732,1712765442730,-1242.4261,0.000342,2]
[322098733,1712765442740,-178.315152,0.00034218,2]
[322098735,1712765442749,-164.394341,0.00034218,2]
[322098736,1712765442758,-2894.78,0.00034245,2]
[322098737,1712765442767,-2894.78,0.00034245,2]
[322098738,1712765442778,-467.51804415,0.00034246,4]
[322098739,1712765442787,-500.0,0.00034246,5]
[322098740,1712765442797,-500.0,0.00034246,5]
[322098741,1712765442806,-500.0,0.00034246,5]
[322098742,1712765442815,-500.0,0.00034246,5]
[322098743,1712765442825,-500.0,0.00034246,5]
[322098744,1712765442835,-552.1,0.00034246,5]
[322098745,1712765442845,-500.0,0.00034246,5]
[322098746,1712765442856,-500.0,0.00034246,5]
[322098747,1712765442865,-502.35,0.00034246,5]
[322098748,1712765442874,-500.0,0.00034246,5]
[322098749,1712765442883,-524.97,0.00034246,5]
[322098750,1712765442893,-500.0,0.00034246,5]
[322098751,1712765442902,-1393.86,0.00034246,5]
[322098752,1712765442911,-500.0,0.00034246,5]
[322098754,1712765442920,-500.0,0.00034246,5]
[322098756,1712765442929,-500.0,0.00034246,5]
[322098758,1712765442938,-618.62,0.00034246,5]
[322098759,1712765442947,-500.0,0.00034246,5]
[322098760,1712765442957,-500.0,0.00034246,5]
[322098761,1712765442966,-500.0,0.00034246,5]
[322098763,1712765442976,-534.91,0.00034246,5]
[322098765,1712765442987,-500.0,0.00034246,5]
[322098766,1712765442996,-500.0,0.00034246,5]
[322098767,1712765443005,-577.81,0.00034246,5]
[322098769,1712765443014,-500.0,0.00034246,5]
[322098770,1712765443023,-500.0,0.00034246,5]
[322098773,1712765443032,-500.0,0.00034246,5]
[322098775,1712765443042,-500.0,0.00034246,5]
[322098778,1712765443051,-500.0,0.00034246,5]
[322098781,1712765443060,-500.0,0.00034246,5]
[322098782,1712765443069,-748.68,0.00034246,5]
[322098784,1712765443078,-663.36,0.00034246,5]
[322098786,1712765443087,-575.53,0.00034246,5]
[322098789,1712765443097,-924.26,0.00034246,5]
[322098792,1712765443108,-873.59,0.00034246,5]
[322098794,1712765443117,-500.0,0.00034246,5]
[322098796,1712765443125,-500.0,0.00034246,5]
[322098797,1712765443134,-500.0,0.00034246,5]
[322098798,1712765443143,-500.0,0.00034246,5]
[322098799,1712765443152,-895.03,0.00034246,5]
[322098800,1712765443161,-500.0,0.00034246,5]
[322098801,1712765443170,-1803.96,0.00034246,5]
[322098802,1712765443183,-3286.11,0.00034246,5]
[322098803,1712765443192,-500.0,0.00034246,5]
[322098804,1712765443201,-3593.27,0.00034246,5]
[322098806,1712765443210,-500.0,0.00034246,5]
[322098808,1712765443219,-4002.86,0.00034246,5]
[322098810,1712765443228,-1097.88,0.00034246,5]
[322098812,1712765443237,-500.0,0.00034246,5]
[322098813,1712765443246,-2080.69,0.00034246,5]